[Event "Early-Titled-Tuesday-Blitz-February-06-2024"]
[Site "Chess.com"]
[Date "2024.02.06"]
[Round "3"]
[White "Muracle"]
[Black "BestestBP"]
[Result "1-0"]
[WhiteElo "2490"]
[BlackElo "2267"]
[TimeControl "180+1"]
[EndTime "8:28:22 PST"]
[Termination "Muracle won by checkmate"]

1. d4 {[%clk 0:02:44]} 1... d6 {[%clk 0:02:51.8]} 2. Nf3 {[%clk 0:02:42.2]} 2...
Nf6 {[%clk 0:02:51.3]} 3. g3 {[%clk 0:02:41.3]} 3... Nbd7 {[%clk 0:02:51.7]} 4.
Bg2 {[%clk 0:02:41.2]} 4... g6 {[%clk 0:02:52.3]} 5. O-O {[%clk 0:02:41.5]} 5...
Bg7 {[%clk 0:02:52.9]} 6. c4 {[%clk 0:02:41.7]} 6... O-O {[%clk 0:02:53.4]} 7.
Nc3 {[%clk 0:02:42.2]} 7... e5 {[%clk 0:02:53.8]} 8. d5 {[%clk 0:02:42.3]} 8...
Nh5 {[%clk 0:02:38.9]} 9. e4 {[%clk 0:02:41.5]} 9... f5 {[%clk 0:02:38.2]} 10.
exf5 {[%clk 0:02:41.6]} 10... gxf5 {[%clk 0:02:36.7]} 11. Ng5 {[%clk 0:02:38.9]}
11... Ndf6 {[%clk 0:02:24.9]} 12. Ne6 {[%clk 0:02:39]} 12... Bxe6 {[%clk
0:02:24.1]} 13. dxe6 {[%clk 0:02:39.9]} 13... e4 {[%clk 0:02:05.8]} 14. Bg5
{[%clk 0:02:37.9]} 14... Qe8 {[%clk 0:01:54]} 15. Nd5 {[%clk 0:02:31.1]} 15...
Rc8 {[%clk 0:01:43.9]} 16. Bh3 {[%clk 0:02:18.3]} 16... c6 {[%clk 0:01:11.2]}
17. Nxf6+ {[%clk 0:02:07.4]} 17... Bxf6 {[%clk 0:01:07.8]} 18. e7 {[%clk
0:01:57.2]} 18... Bxg5 {[%clk 0:00:09.3]} 19. exf8=Q+ {[%clk 0:01:55.7]} 19...
Kxf8 {[%clk 0:00:10.2]} 20. Bxf5 {[%clk 0:01:54.1]} 20... Rd8 {[%clk 0:00:08.5]}
21. f4 {[%clk 0:01:52.2]} 21... Bf6 {[%clk 0:00:07.4]} 22. Qg4 {[%clk
0:01:47.3]} 22... Ng7 {[%clk 0:00:07]} 23. Bxh7 {[%clk 0:01:45.9]} 23... Bxb2
{[%clk 0:00:06]} 24. Rae1 {[%clk 0:01:41.2]} 24... Bd4+ {[%clk 0:00:04.4]} 25.
Kh1 {[%clk 0:01:40.3]} 25... d5 {[%clk 0:00:04.6]} 26. cxd5 {[%clk 0:01:38.2]}
26... cxd5 {[%clk 0:00:05]} 27. f5 {[%clk 0:01:38.8]} 27... Bf6 {[%clk
0:00:04.5]} 28. Bg6 {[%clk 0:01:35.4]} 28... Qe7 {[%clk 0:00:03.7]} 29. Qh3
{[%clk 0:01:33.4]} 29... Qc5 {[%clk 0:00:03.1]} 30. Rc1 {[%clk 0:01:30.2]} 30...
Qb6 {[%clk 0:00:02.8]} 31. g4 {[%clk 0:01:23.1]} 31... e3 {[%clk 0:00:03.2]} 32.
g5 {[%clk 0:01:19.6]} 32... d4 {[%clk 0:00:03.7]} 33. gxf6 {[%clk 0:01:12]}
33... Qxf6 {[%clk 0:00:04.6]} 34. Qh8+ {[%clk 0:01:11]} 34... Ke7 {[%clk
0:00:05]} 35. Rc7+ {[%clk 0:01:11.4]} 35... Rd7 {[%clk 0:00:05.5]} 36. Rxd7+
{[%clk 0:01:07.1]} 36... Kxd7 {[%clk 0:00:06.4]} 37. Qg8 {[%clk 0:00:55.6]}
37... e2 {[%clk 0:00:06.3]} 38. Re1 {[%clk 0:00:53.1]} 38... Qc6+ {[%clk
0:00:05.8]} 39. Kg1 {[%clk 0:00:53.1]} 39... d3 {[%clk 0:00:04.3]} 40. Qxg7+
{[%clk 0:00:52.8]} 40... Kd6 {[%clk 0:00:04.5]} 41. Qd4+ {[%clk 0:00:52.4]}
41... Qd5 {[%clk 0:00:05]} 42. Qxd5+ {[%clk 0:00:50.5]} 42... Kxd5 {[%clk
0:00:05.5]} 43. Kf2 {[%clk 0:00:50.6]} 43... d2 {[%clk 0:00:04.1]} 44. Kxe2
{[%clk 0:00:50.5]} 44... dxe1=Q+ {[%clk 0:00:04.1]} 45. Kxe1 {[%clk 0:00:51.4]}
45... Ke5 {[%clk 0:00:04.7]} 46. h4 {[%clk 0:00:51.2]} 46... Kf6 {[%clk
0:00:04.5]} 47. h5 {[%clk 0:00:52.1]} 47... Kg7 {[%clk 0:00:04.7]} 48. Kd2
{[%clk 0:00:52.4]} 48... b5 {[%clk 0:00:04]} 49. Kc3 {[%clk 0:00:52.9]} 49... a5
{[%clk 0:00:04]} 50. a3 {[%clk 0:00:53.5]} 50... b4+ {[%clk 0:00:04]} 51. axb4
{[%clk 0:00:53.4]} 51... axb4+ {[%clk 0:00:04.9]} 52. Kxb4 {[%clk 0:00:53.8]}
52... Kh8 {[%clk 0:00:04.7]} 53. Kc4 {[%clk 0:00:54.7]} 53... Kg7 {[%clk
0:00:04.9]} 54. Kd4 {[%clk 0:00:55.6]} 54... Kh8 {[%clk 0:00:04.9]} 55. Ke4
{[%clk 0:00:56.5]} 55... Kg7 {[%clk 0:00:05.4]} 56. Kf4 {[%clk 0:00:57.4]} 56...
Kh8 {[%clk 0:00:05.7]} 57. Kg5 {[%clk 0:00:58.3]} 57... Kg7 {[%clk 0:00:06.3]}
58. f6+ {[%clk 0:00:59]} 58... Kh8 {[%clk 0:00:06.8]} 59. Kf5 {[%clk 0:00:58.8]}
59... Kg8 {[%clk 0:00:07.1]} 60. Ke6 {[%clk 0:00:59.4]} 60... Kh8 {[%clk
0:00:04.7]} 61. Ke7 {[%clk 0:00:58.9]} 61... Kg8 {[%clk 0:00:04.9]} 62. h6
{[%clk 0:00:59.5]} 62... Kh8 {[%clk 0:00:05.2]} 63. Bf5 {[%clk 0:00:58.5]} 63...
Kg8 {[%clk 0:00:05.3]} 64. f7+ {[%clk 0:00:59.1]} 64... Kh8 {[%clk 0:00:05.5]}
65. f8=Q# {[%clk 0:00:59.7]} 1-0

[Event "Early-Titled-Tuesday-Blitz-February-06-2024"]
[Site "Chess.com"]
[Date "2024.02.06"]
[Round "3"]
[White "SmirnovTimofey2000"]
[Black "erugee"]
[Result "1/2-1/2"]
[WhiteElo "1980"]
[BlackElo "2331"]
[TimeControl "180+1"]
[EndTime "8:28:23 PST"]
[Termination "Game drawn by repetition"]

1. e4 {[%clk 0:03:00.9]} 1... e5 {[%clk 0:02:59.6]} 2. Nf3 {[%clk 0:03:00.7]}
2... Nc6 {[%clk 0:03:00.3]} 3. Bc4 {[%clk 0:03:01.1]} 3... Be7 {[%clk
0:02:59.5]} 4. O-O {[%clk 0:02:53]} 4... Nf6 {[%clk 0:02:59.9]} 5. Nc3 {[%clk
0:02:52.4]} 5... O-O {[%clk 0:02:58.1]} 6. d4 {[%clk 0:02:51.5]} 6... d6 {[%clk
0:02:58.4]} 7. h3 {[%clk 0:02:42.5]} 7... Nxe4 {[%clk 0:02:58.1]} 8. Nxe4 {[%clk
0:02:41.1]} 8... d5 {[%clk 0:02:57.9]} 9. Bxd5 {[%clk 0:02:36.7]} 9... Qxd5
{[%clk 0:02:56.4]} 10. Nc3 {[%clk 0:02:36.9]} 10... Qd6 {[%clk 0:02:44.8]} 11.
Nb5 {[%clk 0:02:30.5]} 11... Qg6 {[%clk 0:02:27.7]} 12. Kh1 {[%clk 0:02:10.2]}
12... e4 {[%clk 0:02:19.9]} 13. Ne5 {[%clk 0:01:50.4]} 13... Nxe5 {[%clk
0:02:18.3]} 14. dxe5 {[%clk 0:01:51.3]} 14... Bd8 {[%clk 0:02:17.7]} 15. Be3
{[%clk 0:01:35.5]} 15... a6 {[%clk 0:02:15]} 16. Nc3 {[%clk 0:01:35.6]} 16...
Re8 {[%clk 0:01:37.7]} 17. Qd4 {[%clk 0:01:11.4]} 17... Bg5 {[%clk 0:01:12.2]}
18. Bxg5 {[%clk 0:01:00.7]} 18... Qxg5 {[%clk 0:01:10.5]} 19. Nxe4 {[%clk
0:00:56.1]} 19... Qxe5 {[%clk 0:01:10.3]} 20. Qxe5 {[%clk 0:00:48.9]} 20... Rxe5
{[%clk 0:01:09.9]} 21. f3 {[%clk 0:00:44.7]} 21... Be6 {[%clk 0:01:07.8]} 22.
Rfd1 {[%clk 0:00:40]} 22... h6 {[%clk 0:01:05.9]} 23. b4 {[%clk 0:00:31.6]}
23... b6 {[%clk 0:01:03.6]} 24. a3 {[%clk 0:00:26.1]} 24... a5 {[%clk
0:01:01.9]} 25. c3 {[%clk 0:00:25.4]} 25... f5 {[%clk 0:00:57.7]} 26. Nf2 {[%clk
0:00:19.1]} 26... axb4 {[%clk 0:00:42.1]} 27. axb4 {[%clk 0:00:20]} 27... Rxa1
{[%clk 0:00:40.5]} 28. Rxa1 {[%clk 0:00:20.9]} 28... Bc4 {[%clk 0:00:36.5]} 29.
Kg1 {[%clk 0:00:19.3]} 29... Re3 {[%clk 0:00:34.6]} 30. Nd1 {[%clk 0:00:18.7]}
30... Re2 {[%clk 0:00:30.3]} 31. Rb1 {[%clk 0:00:16.5]} 31... Rd2 {[%clk
0:00:28.3]} 32. Ra1 {[%clk 0:00:16.1]} 32... f4 {[%clk 0:00:20.4]} 33. Rb1
{[%clk 0:00:16.1]} 33... Kf7 {[%clk 0:00:20]} 34. Ra1 {[%clk 0:00:16.5]} 34...
Ke6 {[%clk 0:00:19.6]} 35. Nf2 {[%clk 0:00:15.8]} 35... Bd5 {[%clk 0:00:15.3]}
36. Re1+ {[%clk 0:00:14.8]} 36... Kd6 {[%clk 0:00:13.8]} 37. Ne4+ {[%clk
0:00:15.1]} 37... Bxe4 {[%clk 0:00:13.7]} 38. Rxe4 {[%clk 0:00:16]} 38... g5
{[%clk 0:00:12.8]} 39. Rc4 {[%clk 0:00:15.8]} 39... c5 {[%clk 0:00:11.8]} 40.
bxc5+ {[%clk 0:00:14.8]} 40... bxc5 {[%clk 0:00:11.4]} 41. Re4 {[%clk
0:00:14.4]} 41... Rc2 {[%clk 0:00:11.7]} 42. c4 {[%clk 0:00:14.7]} 42... Rc1+
{[%clk 0:00:10.2]} 43. Kf2 {[%clk 0:00:15.1]} 43... Rc2+ {[%clk 0:00:09.4]} 44.
Kf1 {[%clk 0:00:15.3]} 44... Rc3 {[%clk 0:00:09.4]} 45. Ke2 {[%clk 0:00:15.1]}
45... Ra3 {[%clk 0:00:08.9]} 46. Kf1 {[%clk 0:00:15.2]} 46... Ra2 {[%clk
0:00:08.7]} 47. Kg1 {[%clk 0:00:15.5]} 47... Ra3 {[%clk 0:00:08.6]} 48. Kf1
{[%clk 0:00:15.8]} 48... Ra1+ {[%clk 0:00:08.6]} 49. Kf2 {[%clk 0:00:16.2]}
49... Ra3 {[%clk 0:00:06.4]} 50. Kf1 {[%clk 0:00:16.4]} 1/2-1/2

[Event "Early-Titled-Tuesday-Blitz-February-06-2024"]
[Site "Chess.com"]
[Date "2024.02.06"]
[Round "3"]
[White "ahkashefi2800"]
[Black "ashookk"]
[Result "0-1"]
[WhiteElo "2525"]
[BlackElo "2304"]
[TimeControl "180+1"]
[EndTime "8:28:24 PST"]
[Termination "ashookk won by checkmate"]

1. e4 {[%clk 0:02:59.5]} 1... d6 {[%clk 0:02:58.5]} 2. d4 {[%clk 0:02:59.2]}
2... Nf6 {[%clk 0:02:58.1]} 3. Bd3 {[%clk 0:02:57.3]} 3... e5 {[%clk 0:02:59]}
4. dxe5 {[%clk 0:02:55.3]} 4... dxe5 {[%clk 0:02:58.3]} 5. Nf3 {[%clk 0:02:54]}
5... Nbd7 {[%clk 0:02:55.4]} 6. Bg5 {[%clk 0:02:52.8]} 6... Be7 {[%clk 0:02:55]}
7. Nbd2 {[%clk 0:02:50.9]} 7... c6 {[%clk 0:02:55.4]} 8. O-O {[%clk 0:02:50.7]}
8... Qc7 {[%clk 0:02:55.9]} 9. c3 {[%clk 0:02:46.4]} 9... O-O {[%clk 0:02:56.1]}
10. Qe2 {[%clk 0:02:45]} 10... Rb8 {[%clk 0:02:42.9]} 11. Rfe1 {[%clk
0:02:43.2]} 11... b5 {[%clk 0:02:40.2]} 12. Rad1 {[%clk 0:02:42.9]} 12... Nc5
{[%clk 0:02:40.4]} 13. Bc2 {[%clk 0:02:42.5]} 13... Ne6 {[%clk 0:02:40.9]} 14.
Bxf6 {[%clk 0:02:41.5]} 14... Bxf6 {[%clk 0:02:40.5]} 15. Nf1 {[%clk 0:02:41.5]}
15... Nf4 {[%clk 0:02:39.4]} 16. Qd2 {[%clk 0:02:41]} 16... Bg4 {[%clk
0:02:39.8]} 17. Ne3 {[%clk 0:02:39.7]} 17... Bxf3 {[%clk 0:02:35.9]} 18. gxf3
{[%clk 0:02:40.1]} 18... Rbd8 {[%clk 0:02:34.6]} 19. Qc1 {[%clk 0:02:39.3]}
19... Qc8 {[%clk 0:02:34.8]} 20. Ng4 {[%clk 0:02:37]} 20... Bg5 {[%clk
0:02:31.8]} 21. Kh1 {[%clk 0:02:35.8]} 21... h5 {[%clk 0:02:24.9]} 22. Rxd8
{[%clk 0:02:19.7]} 22... Rxd8 {[%clk 0:02:18.8]} 23. Ne3 {[%clk 0:02:18.7]}
23... Qh3 {[%clk 0:02:17.1]} 24. Bd1 {[%clk 0:02:18]} 24... Nd3 {[%clk
0:02:11.5]} 25. Qd2 {[%clk 0:02:13.6]} 25... Nxe1 {[%clk 0:01:58.4]} 26. Qxe1
{[%clk 0:02:13.3]} 26... Bxe3 {[%clk 0:01:45.4]} 27. fxe3 {[%clk 0:02:12.4]}
27... Qd7 {[%clk 0:01:45.7]} 28. Bb3 {[%clk 0:02:04.8]} 28... Qd2 {[%clk
0:01:41.5]} 29. Qg1 {[%clk 0:01:58.2]} 29... Qe2 {[%clk 0:01:32.7]} 30. Qg3
{[%clk 0:01:52.5]} 30... Qf1+ {[%clk 0:01:23.8]} 31. Qg1 {[%clk 0:01:49.4]}
31... Qxg1+ {[%clk 0:01:08.5]} 32. Kxg1 {[%clk 0:01:48.1]} 32... Rd2 {[%clk
0:01:09.4]} 33. h4 {[%clk 0:01:35.6]} 33... Rxb2 {[%clk 0:01:09.2]} 34. f4
{[%clk 0:01:34.7]} 34... Kf8 {[%clk 0:01:06.7]} 35. fxe5 {[%clk 0:01:30]} 35...
Re2 {[%clk 0:01:04.6]} 36. e6 {[%clk 0:01:25.9]} 36... fxe6 {[%clk 0:01:03.3]}
37. Bxe6 {[%clk 0:01:24.3]} 37... Rxe3 {[%clk 0:01:03.7]} 38. Bd7 {[%clk
0:01:24.5]} 38... Rxc3 {[%clk 0:01:02.1]} 39. Kf2 {[%clk 0:01:23.4]} 39... Ke7
{[%clk 0:01:02.6]} 40. Bf5 {[%clk 0:01:23.4]} 40... Kf6 {[%clk 0:01:02.4]} 41.
Ke2 {[%clk 0:01:19.7]} 41... Ke5 {[%clk 0:01:02.4]} 42. Bg6 {[%clk 0:01:19.4]}
42... Ra3 {[%clk 0:00:59.5]} 43. Bf7 {[%clk 0:01:18.6]} 43... c5 {[%clk
0:00:56.3]} 44. Bxh5 {[%clk 0:01:17.5]} 44... Rxa2+ {[%clk 0:00:55.8]} 45. Kf3
{[%clk 0:01:16.5]} 45... c4 {[%clk 0:00:54.8]} 46. Ke3 {[%clk 0:01:13.5]} 46...
Ra3+ {[%clk 0:00:54]} 47. Kd2 {[%clk 0:01:13.6]} 47... Rh3 {[%clk 0:00:54.6]}
48. Be8 {[%clk 0:01:13.5]} 48... a6 {[%clk 0:00:53.3]} 49. Bd7 {[%clk
0:01:13.7]} 49... Rxh4 {[%clk 0:00:52.3]} 50. Kc3 {[%clk 0:01:13.8]} 50... Rxe4
{[%clk 0:00:52.1]} 51. Kb4 {[%clk 0:01:12.6]} 51... g5 {[%clk 0:00:51.4]} 52.
Bc8 {[%clk 0:01:12.5]} 52... Re3 {[%clk 0:00:45.9]} 53. Bxa6 {[%clk 0:01:07]}
53... Rb3+ {[%clk 0:00:46.2]} 54. Kc5 {[%clk 0:01:06.8]} 54... g4 {[%clk
0:00:45.5]} 55. Bb7 {[%clk 0:01:06.1]} 55... c3 {[%clk 0:00:43.7]} 56. Bd5
{[%clk 0:01:01.9]} 56... c2 {[%clk 0:00:42]} 57. Bxb3 {[%clk 0:01:01]} 57...
c1=Q+ {[%clk 0:00:42.5]} 58. Kb4 {[%clk 0:01:01]} 58... g3 {[%clk 0:00:41.3]}
59. Ba4 {[%clk 0:00:47.7]} 59... bxa4 {[%clk 0:00:35.4]} 60. Kb5 {[%clk
0:00:46]} 60... a3 {[%clk 0:00:35.5]} 61. Kb4 {[%clk 0:00:45.8]} 61... a2 {[%clk
0:00:35.5]} 62. Kb3 {[%clk 0:00:45.2]} 62... a1=Q {[%clk 0:00:33.2]} 63. Kb4
{[%clk 0:00:33.9]} 63... Qab2+ {[%clk 0:00:32.2]} 64. Ka4 {[%clk 0:00:33.9]}
64... Qca1# {[%clk 0:00:33]} 0-1

[Event "Early-Titled-Tuesday-Blitz-February-06-2024"]
[Site "Chess.com"]
[Date "2024.02.06"]
[Round "3"]
[White "N4700000"]
[Black "SashaKuzhilniy"]
[Result "1-0"]
[WhiteElo "2435"]
[BlackElo "2599"]
[TimeControl "180+1"]
[EndTime "8:28:25 PST"]
[Termination "N4700000 won by resignation"]

1. e4 {[%clk 0:03:00.9]} 1... g6 {[%clk 0:03:00.9]} 2. d4 {[%clk 0:03:00.2]}
2... Bg7 {[%clk 0:03:01.3]} 3. Nf3 {[%clk 0:02:59.9]} 3... d6 {[%clk 0:03:01.8]}
4. Be2 {[%clk 0:02:59.4]} 4... Nf6 {[%clk 0:03:00.6]} 5. Nc3 {[%clk 0:02:58.9]}
5... O-O {[%clk 0:02:59.3]} 6. Be3 {[%clk 0:02:57.3]} 6... a6 {[%clk 0:02:53.9]}
7. Qd2 {[%clk 0:02:54.2]} 7... b5 {[%clk 0:02:50.3]} 8. a3 {[%clk 0:02:48.8]}
8... Bb7 {[%clk 0:02:50.1]} 9. d5 {[%clk 0:02:29]} 9... c6 {[%clk 0:02:44.2]}
10. O-O-O {[%clk 0:02:16.6]} 10... cxd5 {[%clk 0:02:37.5]} 11. exd5 {[%clk
0:02:16.2]} 11... Nbd7 {[%clk 0:02:37.9]} 12. Bh6 {[%clk 0:02:14.7]} 12... Qa5
{[%clk 0:02:25.4]} 13. Bxg7 {[%clk 0:02:13.5]} 13... Kxg7 {[%clk 0:02:24.8]} 14.
Kb1 {[%clk 0:02:08.5]} 14... Nb6 {[%clk 0:02:18.9]} 15. Qd4 {[%clk 0:01:45.7]}
15... Nxd5 {[%clk 0:02:11.1]} 16. Nxd5 {[%clk 0:01:44.4]} 16... Bxd5 {[%clk
0:02:12]} 17. g4 {[%clk 0:01:26.6]} 17... e5 {[%clk 0:01:54.9]} 18. Qb4 {[%clk
0:01:18.5]} 18... Qxb4 {[%clk 0:01:52.4]} 19. axb4 {[%clk 0:01:19.4]} 19... h6
{[%clk 0:01:20.4]} 20. h4 {[%clk 0:01:11.1]} 20... Bxf3 {[%clk 0:01:18.2]} 21.
Bxf3 {[%clk 0:01:09.9]} 21... e4 {[%clk 0:01:17.8]} 22. g5 {[%clk 0:01:02.9]}
22... hxg5 {[%clk 0:00:56.6]} 23. hxg5 {[%clk 0:01:03.8]} 23... exf3 {[%clk
0:00:57.2]} 24. gxf6+ {[%clk 0:01:03.5]} 24... Kxf6 {[%clk 0:00:58.1]} 25. Rxd6+
{[%clk 0:01:03.4]} 25... Ke7 {[%clk 0:00:53.2]} 26. Rd3 {[%clk 0:01:01.5]} 26...
Rfd8 {[%clk 0:00:45.4]} 27. Re1+ {[%clk 0:00:53.2]} 27... Kf8 {[%clk 0:00:43.2]}
28. Rxf3 {[%clk 0:00:53]} 28... Rd2 {[%clk 0:00:30.3]} 29. c3 {[%clk 0:00:37.1]}
29... a5 {[%clk 0:00:27.9]} 30. bxa5 {[%clk 0:00:32.4]} 30... Rxa5 {[%clk
0:00:28.8]} 31. Re5 {[%clk 0:00:29.2]} 31... Rd6 {[%clk 0:00:20]} 32. Rf4 {[%clk
0:00:26.9]} 32... Ra4 {[%clk 0:00:18.2]} 33. Rxa4 {[%clk 0:00:19.2]} 33... bxa4
{[%clk 0:00:19.1]} 34. Kc2 {[%clk 0:00:19.5]} 34... Rf6 {[%clk 0:00:16.8]} 35.
Re2 {[%clk 0:00:19.4]} 35... Rf4 {[%clk 0:00:17.1]} 36. Kd3 {[%clk 0:00:19.1]}
36... f5 {[%clk 0:00:15.3]} 37. c4 {[%clk 0:00:18.6]} 37... g5 {[%clk
0:00:12.7]} 38. Kc3 {[%clk 0:00:18.7]} 38... g4 {[%clk 0:00:11.9]} 39. Kb4
{[%clk 0:00:16.5]} 39... Rd4 {[%clk 0:00:12]} 40. Kb5 {[%clk 0:00:16]} 40... f4
{[%clk 0:00:11.4]} 41. c5 {[%clk 0:00:15.9]} 41... g3 {[%clk 0:00:09.3]} 42.
fxg3 {[%clk 0:00:15.5]} 42... fxg3 {[%clk 0:00:10.2]} 43. c6 {[%clk 0:00:15.2]}
43... Rd8 {[%clk 0:00:09.3]} 44. c7 {[%clk 0:00:14.5]} 44... Rc8 {[%clk
0:00:09.5]} 45. Kc6 {[%clk 0:00:14.9]} 45... Kf7 {[%clk 0:00:05.3]} 46. Kd7
{[%clk 0:00:14.4]} 46... Rg8 {[%clk 0:00:04.5]} 47. c8=Q {[%clk 0:00:14]} 47...
Rxc8 {[%clk 0:00:04.9]} 48. Kxc8 {[%clk 0:00:14.7]} 48... Kf6 {[%clk 0:00:05.8]}
49. Rg2 {[%clk 0:00:14.6]} 1-0

[Event "Early-Titled-Tuesday-Blitz-February-06-2024"]
[Site "Chess.com"]
[Date "2024.02.06"]
[Round "3"]
[White "alexrustemov"]
[Black "Flameboard08"]
[Result "0-1"]
[WhiteElo "2756"]
[BlackElo "2565"]
[TimeControl "180+1"]
[EndTime "8:28:26 PST"]
[Termination "Flameboard08 won on time"]

1. d4 {[%clk 0:03:00.9]} 1... b6 {[%clk 0:02:57.8]} 2. Nf3 {[%clk 0:02:58.6]}
2... Bb7 {[%clk 0:02:58]} 3. c4 {[%clk 0:02:55.3]} 3... d6 {[%clk 0:02:54.5]} 4.
Nc3 {[%clk 0:02:54.8]} 4... Nd7 {[%clk 0:02:54.6]} 5. e4 {[%clk 0:02:54.4]} 5...
g6 {[%clk 0:02:54.6]} 6. Bd3 {[%clk 0:02:47.5]} 6... Bg7 {[%clk 0:02:54.2]} 7.
O-O {[%clk 0:02:47.9]} 7... e5 {[%clk 0:02:50.2]} 8. d5 {[%clk 0:02:45.2]} 8...
Ne7 {[%clk 0:02:47.4]} 9. Rb1 {[%clk 0:02:36.7]} 9... O-O {[%clk 0:02:44.9]} 10.
b4 {[%clk 0:02:37.1]} 10... a5 {[%clk 0:02:44]} 11. a3 {[%clk 0:02:37]} 11... h6
{[%clk 0:02:41.8]} 12. Nd2 {[%clk 0:02:33.4]} 12... f5 {[%clk 0:02:41]} 13. f3
{[%clk 0:02:33.2]} 13... f4 {[%clk 0:02:37.4]} 14. Nb3 {[%clk 0:02:27.4]} 14...
axb4 {[%clk 0:02:19.7]} 15. axb4 {[%clk 0:02:27]} 15... Ba6 {[%clk 0:02:09.5]}
16. c5 {[%clk 0:02:20.1]} 16... Bxd3 {[%clk 0:02:08.5]} 17. Qxd3 {[%clk
0:02:21]} 17... bxc5 {[%clk 0:02:07.8]} 18. bxc5 {[%clk 0:02:21.8]} 18... h5
{[%clk 0:01:57.9]} 19. cxd6 {[%clk 0:02:14.2]} 19... cxd6 {[%clk 0:01:57.6]} 20.
Nb5 {[%clk 0:02:14.3]} 20... Qb6+ {[%clk 0:01:54.2]} 21. Kh1 {[%clk 0:02:11.7]}
21... Rfb8 {[%clk 0:01:48.9]} 22. Nd2 {[%clk 0:02:02.8]} 22... Qa6 {[%clk
0:01:35.5]} 23. Ba3 {[%clk 0:01:22.7]} 23... Rb6 {[%clk 0:00:56.9]} 24. Rb3
{[%clk 0:01:14.2]} 24... Nc8 {[%clk 0:00:30.1]} 25. Rfb1 {[%clk 0:01:04.2]}
25... Bf8 {[%clk 0:00:27.4]} 26. Nc4 {[%clk 0:00:52.4]} 26... Rb7 {[%clk
0:00:26.9]} 27. Nc3 {[%clk 0:00:32.5]} 27... Rxb3 {[%clk 0:00:25.1]} 28. Rxb3
{[%clk 0:00:33.4]} 28... Ncb6 {[%clk 0:00:20.5]} 29. Nb2 {[%clk 0:00:30.1]}
29... Qa5 {[%clk 0:00:16.3]} 30. Qb5 {[%clk 0:00:16]} 30... Qa7 {[%clk
0:00:03.4]} 31. h3 {[%clk 0:00:15.8]} 31... Rc8 {[%clk 0:00:03]} 32. Kh2 {[%clk
0:00:14.6]} 32... Nc5 {[%clk 0:00:03.6]} 33. Bxc5 {[%clk 0:00:12.9]} 33... Rxc5
{[%clk 0:00:03.7]} 34. Qe8 {[%clk 0:00:12.7]} 34... Qg7 {[%clk 0:00:03]} 35.
Rxb6 {[%clk 0:00:11.3]} 35... Rxc3 {[%clk 0:00:03.1]} 36. Rb8 {[%clk 0:00:10.7]}
36... Rc2 {[%clk 0:00:03.4]} 37. Na4 {[%clk 0:00:09.7]} 37... Qf6 {[%clk
0:00:03.2]} 38. Nb6 {[%clk 0:00:07.9]} 38... Kg7 {[%clk 0:00:01.8]} 39. Nd7
{[%clk 0:00:07.6]} 39... Qe7 {[%clk 0:00:02.1]} 40. Qxf8+ {[%clk 0:00:07.1]}
40... Qxf8 {[%clk 0:00:02.3]} 41. Nxf8 {[%clk 0:00:07.8]} 41... Kf7 {[%clk
0:00:02.5]} 42. Ne6 {[%clk 0:00:02.7]} 42... Ra2 {[%clk 0:00:01.4]} 0-1

[Event "Early-Titled-Tuesday-Blitz-February-06-2024"]
[Site "Chess.com"]
[Date "2024.02.06"]
[Round "3"]
[White "FormerProdigy"]
[Black "Triumphmate"]
[Result "1-0"]
[WhiteElo "3023"]
[BlackElo "2516"]
[TimeControl "180+1"]
[EndTime "8:28:26 PST"]
[Termination "FormerProdigy won by resignation"]

1. c4 {[%clk 0:03:00.9]} 1... e6 {[%clk 0:02:56.1]} 2. g3 {[%clk 0:03:00.7]}
2... d5 {[%clk 0:02:56]} 3. Bg2 {[%clk 0:03:01.2]} 3... Nf6 {[%clk 0:02:55.6]}
4. b3 {[%clk 0:02:59]} 4... Be7 {[%clk 0:02:55.6]} 5. Nf3 {[%clk 0:02:58.3]}
5... O-O {[%clk 0:02:56.2]} 6. Bb2 {[%clk 0:02:58]} 6... b6 {[%clk 0:02:54.4]}
7. O-O {[%clk 0:02:56.7]} 7... Bb7 {[%clk 0:02:55]} 8. e3 {[%clk 0:02:49]} 8...
Nbd7 {[%clk 0:02:52.1]} 9. Qe2 {[%clk 0:02:46.4]} 9... c5 {[%clk 0:02:47]} 10.
d3 {[%clk 0:02:34.4]} 10... Rc8 {[%clk 0:02:39.2]} 11. Nc3 {[%clk 0:02:33.9]}
11... Re8 {[%clk 0:02:35.4]} 12. Rad1 {[%clk 0:02:20.4]} 12... Nf8 {[%clk
0:02:34.4]} 13. Ne5 {[%clk 0:02:14.3]} 13... Ng6 {[%clk 0:02:32]} 14. f4 {[%clk
0:02:14.5]} 14... Qc7 {[%clk 0:02:30.4]} 15. Nxg6 {[%clk 0:02:01.8]} 15... hxg6
{[%clk 0:02:30.1]} 16. e4 {[%clk 0:02:02.7]} 16... dxe4 {[%clk 0:02:21.2]} 17.
dxe4 {[%clk 0:02:03.6]} 17... Rcd8 {[%clk 0:02:11]} 18. e5 {[%clk 0:01:49.5]}
18... Bxg2 {[%clk 0:02:10.7]} 19. Kxg2 {[%clk 0:01:50.4]} 19... Nd7 {[%clk
0:02:01]} 20. Qf3 {[%clk 0:01:45.2]} 20... a6 {[%clk 0:01:50.9]} 21. Ne4 {[%clk
0:01:31.8]} 21... Nb8 {[%clk 0:01:51]} 22. h4 {[%clk 0:01:30.5]} 22... Rxd1
{[%clk 0:01:32.4]} 23. Rxd1 {[%clk 0:01:31.4]} 23... Rd8 {[%clk 0:01:33.2]} 24.
Rh1 {[%clk 0:01:31.3]} 24... Qd7 {[%clk 0:01:17]} 25. h5 {[%clk 0:01:30.3]}
25... Qd3 {[%clk 0:01:05.1]} 26. Qxd3 {[%clk 0:01:23.4]} 26... Rxd3 {[%clk
0:01:04.8]} 27. hxg6 {[%clk 0:01:23.3]} 27... fxg6 {[%clk 0:01:05.7]} 28. Kf2
{[%clk 0:01:21.2]} 28... Nc6 {[%clk 0:01:04]} 29. Ke2 {[%clk 0:01:21.3]} 29...
Nb4 {[%clk 0:00:54.3]} 30. Bc3 {[%clk 0:01:12.8]} 30... Rd7 {[%clk 0:00:45.7]}
31. Bxb4 {[%clk 0:01:12.3]} 31... cxb4 {[%clk 0:00:46.6]} 32. Rd1 {[%clk
0:01:09]} 32... Rc7 {[%clk 0:00:46.4]} 33. Kf3 {[%clk 0:01:01.3]} 33... Kf7
{[%clk 0:00:40.6]} 34. Nd6+ {[%clk 0:00:51.4]} 34... Bxd6 {[%clk 0:00:38.6]} 35.
exd6 {[%clk 0:00:49.2]} 35... Rd7 {[%clk 0:00:37.2]} 36. Ke4 {[%clk 0:00:49.8]}
36... Kf6 {[%clk 0:00:37]} 37. g4 {[%clk 0:00:50.1]} 37... e5 {[%clk 0:00:13.2]}
38. fxe5+ {[%clk 0:00:17.9]} 38... Ke6 {[%clk 0:00:12.9]} 39. Kf4 {[%clk
0:00:18.5]} 39... a5 {[%clk 0:00:07.9]} 40. Kg5 {[%clk 0:00:17.7]} 40... Kxe5
{[%clk 0:00:05.8]} 41. Kxg6 {[%clk 0:00:17.1]} 41... Ke6 {[%clk 0:00:05.7]} 42.
g5 {[%clk 0:00:16.7]} 42... Rd8 {[%clk 0:00:04.3]} 43. Kxg7 {[%clk 0:00:15.3]}
43... a4 {[%clk 0:00:03.7]} 44. bxa4 {[%clk 0:00:13.6]} 44... Kd7 {[%clk
0:00:04.1]} 45. g6 {[%clk 0:00:13.2]} 45... Ra8 {[%clk 0:00:04.2]} 46. Kf7
{[%clk 0:00:13.6]} 1-0